Workbook

Sheet Лист3
A1: № п/п | B1: Адрес многоквартирного дома | C1: Стоимость капитального ремонта МКД, руб. | F1: Показатель | G1: Виды услуг и (или) работ по капитальному ремонту
C2: всего | D2: по утвержденному краткосрочному плану от 29.12.2022 № 788-пп | E2: срества Фонда, полученные за счет процентов | G2: ремонт и утепление фасада | H2: ремонт крыши, переустройство невентили-руемой крыши на вентилируемую крышу, устройство выходов на кровлю | I2: ремонт подвальных помещений, относящихся к общему имуществу в многоквартир-ном доме | J2: ремонт внутри-домовых инженерных систем электроснаб-жения | K2: ремонт внутридомовых инженерных систем теплоснабже-ния | L2: ремонт внутридомовых инженерных систем холодного водоснабжения | M2: ремонт внутридомовых инженерных систем горячего водоснабжения | N2: ремонт внутридомовых инженерных систем водоотведения | O2: установка коллектив-ных (общедо-мовых) приборов учета потребления ресурсов | P2: ремонт, замена, модернизация лифтов, ремонт лифтовых шахт, машинных и блочных помещений | Q2: разработка проектной документа-ции | R2: строитель-ный контроль, авторский надзор*
A3: 1 | B3: 2 | C3: 3 | D3: 4 | E3: 5 | F3: 6 | G3: 7 | H3: 8 | I3: 9 | J3: 10 | K3: 11 | L3: 12 | M3: 13 | N3: 14 | O3: 15 | P3: 16 | Q3: 17 | R3: 18
A4: Всего | C4: =SUM(C5:C154) -> 452,492,792.12 | D4: =SUM(D5:D154) -> 254,934,335.77 | E4: =SUM(E5:E154) -> 197,558,456.35
A5: 1 | B5: Весьегонский муниципальный округ, г. Весьегонск, ул. Промышленная, д. 22 | C5: =D5+E5 -> 6,122,203.80 | D5: 3,082,524.54 | E5: 3,039,679.26 | F5: кв. м | H5: 920.0
F6: руб. | H6: 5,778,520.00 | Q6: 220,023.47 | R6: 123,660.33
A7: 2 | B7: Вышневолоцкий городской округ, г. Вышний Волочек, ул. 4-я Пролетарская, д. 98/2 | C7: =D7+E7 -> 3,837,521.05 | D7: 958,754.62 | E7: 2,878,766.43 | F7: кв. м | G7: 908.9
F8: руб. | G8: 3,691,951.80 | Q8: 66,561.48 | R8: 79,007.77
A9: 3 | B9: Вышневолоцкий городской округ, г. Вышний Волочек, ул. Большая Садовая, д. 82 | C9: =D9+E9 -> 1,441,223.30 | D9: 519,420.24 | E9: 921,803.06 | F9: кв. м | I9: 786.2
F10: руб. | I10: 1,375,850.00 | Q10: 35,930.11 | R10: 29,443.19
A11: 4 | B11: Вышневолоцкий городской округ, п. Академический, ул. Пионерская, д. 1 | C11: =D11+E11 -> 3,171,577.40 | D11: 1,123,863.71 | E11: 2,047,713.69 | F11: кв. м | H11: 458.46
F12: руб. | H12: 2,879,587.26 | Q12: 230,366.98 | R12: 61,623.16
A13: 5 | B13: Вышневолоцкий городской округ, п. Академический, ул. Октябрьская, д. 1 | C13: =D13+E13 -> 3,257,636.01 | D13: 1,111,073.16 | E13: 2,146,562.85 | F13: кв. м | H13: 470.90
F14: руб. | H14: 2,957,722.90 | Q14: 236,617.83 | R14: 63,295.28
A15: 6 | B15: Вышневолоцкий городской округ, п. Приозерный, ул. Дорожная, д. 6 | C15: =D15+E15 -> 1,224,618.16 | D15: 210,350.00 | E15: 1,014,268.16 | F15: кв. м | N15: 522.0
F16: руб. | N16: 1,184,481.60 | Q16: 14,788.65 | R16: 25,347.91
A17: 7 | B17: Вышневолоцкий городской округ, г. Вышний Волочек, ул. Двор фабрики Пролетарский Авангард, д. 39 | C17: =D17+E17 -> 2,659,584.12 | D17: 767,433.49 | E17: 1,892,150.63 | F17: кв. м | H17: 384.45
F18: руб. | H18: 2,414,730.45 | Q18: 193,178.44 | R18: 51,675.23
A19: 8 | B19: Вышневолоцкий городской округ, г. Вышний Волочек, ул. Дзержинского, д. 10 | C19: =D19+E19 -> 2,152,571.71 | D19: 804,526.11 | E19: 1,348,045.60 | F19: кв. м | H19: 311.16
F20: руб. | H20: 1,954,395.96 | Q20: 156,351.68 | R20: 41,824.07
A21: 9 | B21: Вышневолоцкий городской округ, п. Приозерный, ул. Дорожная, д. 4 | C21: =D21+E21 -> 809,195.26 | D21: 245,155.12 | E21: 564,040.14 | F21: кв. м | N21: 355.0
F22: руб. | N22: 775,366.80 | Q22: 17,235.61 | R22: 16,592.85
A23: 10 | B23: Вышневолоцкий городской округ, п. Приозерный, ул. Дорожная, д. 4а | C23: =D23+E23 -> 1,230,205.49 | D23: 349,777.66 | E23: 880,427.83 | F23: кв. м | N23: 506.5
F24: руб. | N24: 1,180,354.80 | Q24: 24,591.09 | R24: 25,259.59
A25: 11 | B25: Вышневолоцкий городской округ, г. Вышний Волочек, ул. Дзержинского, д. 12/25 | C25: =D25+E25 -> 1,810,551.06 | D25: 536,947.63 | E25: 1,273,603.43 | F25: кв. м | H25: 261.72
F26: руб. | H26: 1,643,863.32 | Q26: 131,509.07 | R26: 35,178.67
A27: 12 | B27: Вышневолоцкий городской округ, г. Вышний Волочек, ул. Карла Маркса, д. 68 | C27: =D27+E27 -> 1,726,920.31 | D27: 796,854.09 | E27: 930,066.22 | F27: кв. м | G27: 386.00
F28: руб. | G28: 1,567,932.00 | Q28: 125,434.56 | R28: 33,553.75
A29: 13 | B29: Вышневолоцкий городской округ, п. Приозерный, ул. Дорожная, д. 5 | C29: =D29+E29 -> 1,223,137.73 | D29: 204,411.03 | E29: 1,018,726.70 | F29: кв. м | N29: 511.8
F30: руб. | N30: 1,184,002.87 | Q30: 13,797.20 | R30: 25,337.66
A31: 14 | B31: Конаковский муниципальный округ, п. Озерки, пр-д Железнодорожный, д. 3 | C31: =D31+E31 -> 3,248,936.59 | D31: 1,107,622.00 | E31: 2,141,314.59 | F31: кв. м | G31: 726.2
F32: руб. | G32: 2,949,824.40 | Q32: 235,985.95 | R32: 63,126.24
A33: 15 | B33: Конаковский муниципальный округ, п. Новозавидовский, ул. Фабричная, д. 2 | C33: =D33+E33 -> 5,748,571.67 | D33: 3,410,816.00 | E33: 2,337,755.67 | F33: кв. м | H33: 875.84
F34: руб. | H34: 5,501,151.04 | Q34: 129,696.00 | R34: 117,724.63
A35: 16 | B35: Конаковский муниципальный округ, п. Новозавидовский, ул. Юбилейная, д. 5 | C35: =D35+E35 -> 3,806,377.72 | D35: 1,806,908.00 | E35: 1,999,469.72 | F35: кв. м | H35: 572.86
F36: руб. | H36: 3,598,133.66 | Q36: 131,244.00 | R36: 77,000.06
A37: 17 | B37: Кувшиновский муниципальный округ, г. Кувшиново, ул. Бумажников, д. 10 | C37: =D37+E37 -> 5,368,086.96 | D37: 917,475.00 | E37: 4,450,611.96 | F37: кв. м | G37: 594
F38: руб. | G38: 5,190,372.00 | Q38: 66,641.00 | R38: 111,073.96
A39: 18 | B39: Нелидовский городской округ, пр-т Ленина, д. 1а | C39: =D39+E39 -> 6,432,836.84 | D39: 0.00 | E39: 6,432,836.84 | F39: шт. | P39: 2
F40: руб. | P40: 5,840,600.00 | Q40: 467,248.00 | R40: 124,988.84
A41: 19 | B41: Бологовский муниципальный округ, г. Бологое, ул. Гагарина, д. 6 | C41: =D41+E41 -> 964,248.38 | D41: 917,627.89 | E41: 46,620.49 | F41: кв. м | J41: 516.20 | N41: 516.20
F42: руб. | J42: 515,167.60 | N42: 360,307.60 | Q42: 70,038.02 | R42: 18,735.17
A43: 20 | B43: Бологовский муниципальный округ, г. Бологое ул. Кирова, д. 1 | C43: =D43+E43 -> 10,410,913.54 | D43: 9,041,678.52 | E43: 1,369,235.02 | F43: кв. м | G43: 2,327.04
F44: руб. | G44: 9,452,436.48 | Q44: 756,194.92 | R44: 202,282.14
A45: 21 | B45: Западнодвинский муниципальный округ, г. Западная Двина, ул. Щербакова, д. 24 | C45: =D45+E45 -> 5,176,709.83 | D45: 3,242,499.05 | E45: 1,934,210.78 | F45: кв. м | H45: 650.00
F46: руб. | H46: 4,948,450.00 | Q46: 122,363.00 | R46: 105,896.83
A47: 22 | B47: Конаковский муниципальный округ, с.п. Завидово, д. Мокшино, ул. Ленинградская, д. 8 | C47: =D47+E47 -> 6,390,248.84 | D47: 1,866,925.32 | E47: 4,523,323.52 | F47: кв. м | H47: 700.00
F48: руб. | H48: 6,123,600.00 | Q48: 135,603.80 | R48: 131,045.04
A49: 23 | B49: Конаковский муниципальный округ, с.п. Завидово, д. Мокшино, ул. Солнечная, д. 3 | C49: =D49+E49 -> 6,389,537.45 | D49: 1,857,131.23 | E49: 4,532,406.22 | F49: кв. м | H49: 700.00
F50: руб. | H50: 6,123,600.00 | Q50: 134,892.41 | R50: 131,045.04
A51: 24 | B51: Конаковский муниципальный округ, с.п. Завидово, д. Мокшино, ул. Ленинградская, д. 2 | C51: =D51+E51 -> 6,529,318.21 | D51: 1,936,330.91 | E51: 4,592,987.30 | F51: кв. м | H51: 715.00
F52: руб. | H52: 6,254,820.00 | Q52: 140,645.06 | R52: 133,853.15
A53: 25 | B53: Кувшиновский муниципальный округ, г. Кувшиново, ул. Советская, д. 3 | C53: =D53+E53 -> 4,821,152.43 | D53: 2,954,489.00 | E53: 1,866,663.43 | F53: кв. м | G53: 1,110.30
F54: руб. | G54: 4,510,038.60 | Q54: 214,599.00 | R54: 96,514.83
A55: 26 | B55: Нелидовский городской округ, г. Нелидово, ул. Горького, д. 10 | C55: =D55+E55 -> 6,039,747.18 | D55: 4,751,163.62 | E55: 1,288,583.56 | F55: кв. м | G55: 499.10
F56: руб. | G56: 5,483,700.00 | Q56: 438,696.00 | R56: 117,351.18
A57: 27 | B57: Ржевский муниципальный округ, г. Ржев, ул. Пархоменко, 14 | C57: =D57+E57 -> 3,874,020.30 | D57: 791,997.00 | E57: 3,082,023.30 | F57: кв. м | H57: 560.00
F58: руб. | H58: 3,517,360.00 | Q58: 281,388.80 | R58: 75,271.50
A59: 28 | B59: Ржевский муниципальный округ, г. Ржев, ул. Железнодорожная, д. 34 | C59: =D59+E59 -> 7,289,383.38 | D59: 4,368,894.36 | E59: 2,920,489.02 | F59: кв. м | H59: 900.00
F60: руб. | H60: 6,851,700.00 | Q60: 291,057.00 | R60: 146,626.38
A61: 29 | B61: Ржевский муниципальный округ, г. Ржев, ул. Рижская, д. 4 | C61: =D61+E61 -> 1,992,301.30 | D61: 1,198,875.73 | E61: 793,425.57 | F61: кв. м | H61: 299.00
F62: руб. | H62: 1,878,019.00 | Q62: 74,092.69 | R62: 40,189.61
A63: 30 | B63: Торжокский район, г. Торжок, ул. Красноармейская, д. 2 | C63: =D63+E63 -> 6,099,848.73 | D63: 2,939,370.25 | E63: 3,160,478.48 | F63: кв. м | H63: 930.52
F64: руб. | H64: 5,844,596.12 | Q64: 130,178.25 | R64: 125,074.36
A65: 31 | B65: Торжокский район, г. Торжок, наб. Тверецкая, д. 80 | C65: =D65+E65 -> 8,647,366.76 | D65: 4,251,580.37 | E65: 4,395,786.39 | F65: кв. м | H65: 1,250.00
F66: руб. | H66: 7,851,250.00 | Q66: 628,100.00 | R66: 168,016.76
A67: 32 | B67: Селижаровский муниципальный округ, пгт Селижарово, ул. Пионерская, д. 14 | C67: =D67+E67 -> 6,207,927.92 | D67: 3,676,298.47 | E67: 2,531,629.45 | F67: кв. м | H67: 811.74
F68: руб. | H68: 5,879,432.82 | Q68: 202,675.24 | R68: 125,819.86
A69: 33 | B69: Селижаровский муниципальный округ, пгт Селижарово, ул. Микрорайон, д. 6 | C69: =D69+E69 -> 3,126,371.66 | D69: 1,405,237.49 | E69: 1,721,134.17 | F69: кв. м | H69: 408.80
F70: руб. | H70: 2,960,938.40 | Q70: 102,069.18 | R70: 63,364.08
A71: 34 | B71: Селижаровский муниципальный округ, пгт Селижарово, ул. Ст. Разина, д. 2а | C71: =D71+E71 -> 6,433,203.50 | D71: 4,931,773.08 | E71: 1,501,430.42 | F71: кв. м | H71: 697.00
F72: руб. | H72: 6,097,356.00 | Q72: 205,364.08 | R72: 130,483.42
A73: 35 | B73: Селижаровский муниципальный округ, пгт Селижарово, ул. Завокзальная, д. 20 | C73: =D73+E73 -> 2,303,715.51 | D73: 1,438,795.00 | E73: 864,920.51 | F73: кв. м | H73: 425.10
F74: руб. | H74: 2,153,131.50 | Q74: 104,507.00 | R74: 46,077.01
A75: 36 | B75: ЗАТО Озерный, ул. Московская, д. 17 | C75: =D75+E75 -> 9,966,078.04 | D75: 6,279,770.88 | E75: 3,686,307.16 | F75: кв. м | H75: 1,223.00
F76: руб. | H76: 9,310,699.00 | Q76: 456,130.08 | R76: 199,248.96
A77: 37 | B77: ЗАТО Озерный, ул. Ленинградская, д. 16 | C77: =D77+E77 -> 9,966,078.04 | D77: 6,279,770.88 | E77: 3,686,307.16 | F77: кв. м | H77: 1,223.00
F78: руб. | H78: 9,310,699.00 | Q78: 456,130.08 | R78: 199,248.96
A79: 38 | B79: ЗАТО Озерный, ул. Московская, д. 15 | C79: =D79+E79 -> 7,448,074.67 | D79: 4,693,140.30 | E79: 2,754,934.37 | F79: кв. м | H79: 914.00
F80: руб. | H80: 6,958,282.00 | Q80: 340,885.44 | R80: 148,907.23
A81: 39 | B81: ЗАТО Озерный, ул. Московская, д. 2 | C81: =D81+E81 -> 7,129,266.60 | D81: 5,805,354.95 | E81: 1,323,911.65 | F81: кв. м | K81: 2,302.20 | O81: 1.00
F82: руб. | K82: 6,114,643.20 | O82: 358,270.00 | Q82: 517,833.06 | R82: 138,520.34
A83: 40 | B83: ЗАТО Озерный, ул. Московская, д. 4 | C83: =D83+E83 -> 7,996,916.04 | D83: 4,980,039.40 | E83: 3,016,876.64 | F83: кв. м | K83: 2,598.80 | O83: 1.00
F84: руб. | K84: 6,902,412.80 | O84: 358,270.00 | Q84: 580,854.62 | R84: 155,378.62
A85: 41 | B85: г. Тверь, ул. Маршала Буденного, д. 19/1 | C85: =D85+E85 -> 813,823.58 | D85: 405,647.25 | E85: 408,176.33 | F85: кв. м | K85: 278.20
F86: руб. | K86: 738,899.20 | Q86: 59,111.94 | R86: 15,812.44
A87: 42 | B87: г. Тверь, ул. 15 лет Октября, д. 64/23 | C87: =D87+E87 -> 2,147,502.03 | D87: 1,429,079.72 | E87: 718,422.31 | F87: кв. м | K87: 638.60 | O87: 1.00
F88: руб. | K88: 1,696,121.60 | O88: 358,270.00 | Q88: 49,146.45 | R88: 43,963.98
A89: 43 | B89: г. Тверь, б-р Радищева, д. 26 | C89: =D89+E89 -> 1,481,378.81 | D89: 914,559.01 | E89: 566,819.80 | F89: кв. м | K89: 533.60
F90: руб. | K90: 1,417,241.60 | Q90: 33,808.24 | R90: 30,328.97
A91: 44 | B91: г. Тверь, ул. Королева, д. 4 | C91: =D91+E91 -> 33,628,098.26 | D91: 29,033,804.29 | E91: 4,594,293.97 | F91: кв. м | K91: 11,178.30
F92: руб. | K92: 32,778,166.80 | Q92: 148,478.69 | R92: 701,452.77
A93: 45 | B93: г. Тверь, ш. Петербургское, д. 7А | C93: =D93+E93 -> 640,928.10 | D93: 142,855.18 | E93: 498,072.92 | F93: кв. м | N93: 886.00
F94: руб. | N94: 618,428.00 | Q94: 9,265.74 | R94: 13,234.36
A95: 46 | B95: г. Тверь, ул. Благоева, д. 6А | C95: =D95+E95 -> 7,523,470.58 | D95: 3,687,908.00 | E95: 3,835,562.58 | F95: кв. м | L95: 4,552.50
F96: руб. | L96: 7,288,552.50 | Q96: 78,943.06 | R96: 155,975.02
A97: 47 | B97: г. Тверь, ул. Инициативная, д. 10/11 | C97: =D97+E97 -> 438,645.23 | D97: 264,057.00 | E97: 174,588.23 | F97: кв. м | J97: 411.50
F98: руб. | J98: 410,677.00 | Q98: 19,179.74 | R98: 8,788.49
A99: 48 | B99: г. Тверь, ул. Маршала Захарова, д. 12 | C99: =D99+E99 -> 1,154,632.09 | D99: 649,615.00 | E99: 505,017.09 | F99: кв. м | L99: 468.90 | N99: 468.90
F100: руб. | L100: 750,708.90 | N100: 327,292.20 | Q100: 53,561.77 | R100: 23,069.22
A101: 49 | B101: г. Тверь, ул. Седова, д. 7В | C101: =D101+E101 -> 3,547,908.87 | D101: 1,083,893.00 | E101: 2,464,015.87 | F101: кв. м | K101: 756.70 | M101: 756.70
F102: руб. | K102: 2,009,795.20 | M102: 1,211,476.70 | Q102: 257,701.75 | R102: 68,935.22
A103: 50 | B103: г. Тверь, наб. Степана Разина, д. 16 | C103: =D103+E103 -> 2,875,428.67 | D103: 1,685,452.24 | E103: 1,189,976.43 | F103: кв. м | K103: 420.10 | L103: 420.10 | M103: 420.10 | N103: 420.10
F104: руб. | K104: 1,115,785.60 | L104: 672,580.10 | M104: 672,580.10 | N104: 293,229.80 | Q104: 62,313.71 | R104: 58,939.36
A105: 51 | B105: г. Тверь, ул. Богданова, д. 24, корп. 2 | C105: =D105+E105 -> 7,357,760.84 | D105: 1,721,427.00 | E105: 5,636,333.84 | F105: кв. м | K105: 2,515.20
F106: руб. | K106: 6,680,371.20 | Q106: 534,429.70 | R106: 142,959.94
A107: 52 | B107: г. Тверь, ул. Евгения Пичугина, д. 56 | C107: =D107+E107 -> 2,749,421.96 | D107: 1,502,478.00 | E107: 1,246,943.96 | F107: кв. м | J107: 2,501.30
F108: руб. | J108: 2,496,297.40 | Q108: 199,703.79 | R108: 53,420.77
A109: 53 | B109: г. Тверь, ул. Ржевская, д. 12А | C109: =D109+E109 -> 3,835,417.80 | D109: 2,610,618.00 | E109: 1,224,799.80 | F109: кв. м | J109: 3,489.29
F110: руб. | J110: 3,482,311.42 | Q110: 278,584.91 | R110: 74,521.47
A111: 54 | B111: г. Тверь, ул. Советская, д. 64 | C111: =D111+E111 -> 16,234,608.26 | D111: 4,100,705.00 | E111: 12,133,903.26 | F111: кв. м | L111: 6,786.80 | N111: 6,786.80
F112: руб. | L112: 10,865,666.80 | N112: 4,737,186.40 | Q112: 297,854.00 | R112: 333,901.06
A113: 55 | B113: г. Тверь, ул. Трехсвятская, д. 12 | C113: =D113+E113 -> 9,894,275.58 | D113: 4,618,924.00 | E113: 5,275,351.58 | F113: кв. м | K113: 1,888.70 | M113: 1,888.70 | N113: 1,888.70
F114: руб. | K114: 5,016,387.20 | M114: 3,023,808.70 | N114: 1,318,312.60 | Q114: 335,495.00 | R114: 200,272.08
A115: 56 | B115: г. Тверь, ул. Железнодорожников, д. 28 | C115: =D115+E115 -> 584,195.01 | D115: 206,557.00 | E115: 377,638.01 | F115: кв. м | L115: 331.30
F116: руб. | L116: 530,411.31 | Q116: 42,432.90 | R116: 11,350.80
A117: 57 | B117: г. Тверь, ул. Гвардейская, д. 16 | C117: =D117+E117 -> 551,566.65 | D117: 499,149.64 | E117: 52,417.01 | F117: кв. м | N117: 722.80
F118: руб. | N118: 504,514.40 | Q118: 36,255.64 | R118: 10,796.61
A119: 58 | B119: г. Тверь, ул. Гвардейская, д. 5 | C119: =D119+E119 -> 7,209,185.57 | D119: 1,745,786.78 | E119: 5,463,398.79 | F119: кв. м | G119: 1,729.60
F120: руб. | G120: 7,025,635.20 | Q120: 33,201.78 | R120: 150,348.59
A121: 59 | B121: г. Тверь, пр-кт Победы, д. 36/46 | C121: =D121+E121 -> 12,598,670.41 | D121: 7,325,272.13 | E121: 5,273,398.28 | F121: кв. м | G121: 2,992.90
F122: руб. | G122: 12,157,159.80 | Q122: 181,347.39 | R122: 260,163.22
A123: 60 | B123: г. Тверь, ул. 15 лет Октября, д. 48/15 | C123: =D123+E123 -> 12,689,683.28 | D123: 6,206,916.82 | E123: 6,482,766.46 | F123: кв. м | H123: 1,455.82
F124: руб. | H124: 12,118,245.68 | Q124: 450,838.34 | R124: 120,599.26
A125: 61 | B125: г. Тверь, пр-кт Победы, д. 48/29 | C125: =D125+E125 -> 20,545,653.08 | D125: 8,790,475.08 | E125: 11,755,178.00 | F125: кв. м | H125: 2,738.00
F126: руб. | H126: 20,169,052.00 | Q126: 196,544.18 | R126: 180,056.90
A127: 62 | B127: г. Тверь, ул. 15 лет Октября, д. 8 | C127: =D127+E127 -> 25,845,271.36 | D127: 21,292,781.29 | E127: 4,552,490.07 | F127: кв. м | G127: 1,380.00 | H127: 1,305.30
F128: руб. | G128: 12,058,440.00 | H128: 11,418,764.40 | Q128: 1,878,176.35 | R128: 489,890.61
A129: 63 | B129: г. Тверь, ул. Лукина, д. 10 | C129: =D129+E129 -> 9,378,633.58 | D129: 7,477,371.86 | E129: 1,901,261.72 | F129: кв. м | G129: 1,548.40
F130: руб. | G130: 8,690,232.00 | Q130: 543,117.62 | R130: 145,283.96
A131: 64 | B131: г. Тверь, пер. Садовый, д. 22 | C131: =D131+E131 -> 23,616,971.78 | D131: 16,117,224.32 | E131: 7,499,747.46 | F131: кв. м | G131: 2,605.17 | H131: 913.00
F132: руб. | G132: 14,812,996.62 | H132: 6,950,669.00 | Q132: 1,462,174.48 | R132: 391,131.68
A133: 65 | B133: г. Тверь, ул. Бочкина, д. 22 | C133: =D133+E133 -> 7,085,569.82 | D133: 5,073,237.56 | E133: 2,012,332.26 | F133: кв. м | G133: 1,164.00
F134: руб. | G134: 6,618,504.00 | Q134: 368,493.74 | R134: 98,572.08
A135: 66 | B135: г. Тверь, наб. реки Лазури, д. 14 | C135: =D135+E135 -> 8,530,938.20 | D135: 8,117,052.13 | E135: 413,886.07 | F135: кв. м | G135: 431.60 | H135: 371.20 | J135: 363.40 | K135: 363.40 | L135: 363.40 | M135: 363.40 | N135: 363.40
F136: руб. | G136: 1,753,159.20 | H136: 3,247,257.60 | J136: 362,673.20 | K136: 965,190.40 | L136: 581,803.40 | M136: 581,803.40 | N136: 253,653.20 | Q136: 619,643.23 | R136: 165,754.57
A137: 67 | B137: г. Тверь, пр-кт Ленина, д. 23/1 | C137: =D137+E137 -> 9,021,133.92 | D137: 3,679,400.00 | E137: 5,341,733.92 | F137: кв. м | L137: 5,353.20
F138: руб. | L138: 8,570,473.20 | Q138: 267,252.59 | R138: 183,408.13
A139: 68 | B139: г. Тверь, ул. Мичурина, д. 37/23 | C139: =D139+E139 -> 1,805,529.52 | D139: 1,109,964.30 | E139: 695,565.22 | F139: кв. м | K139: 654.80
F140: руб. | K140: 1,739,148.80 | Q140: 29,162.94 | R140: 37,217.78
A141: 69 | B141: г. Тверь, ул. Екатерины Фарафоновой, д. 45 | C141: =D141+E141 -> 4,930,704.99 | D141: 3,522,195.05 | E141: 1,408,509.94 | F141: кв. м | G141: 1,157.85
F142: руб. | G142: 4,703,186.70 | Q142: 126,870.09 | R142: 100,648.20
A143: 70 | B143: г. Тверь, пр-кт Победы, д. 42 | C143: =D143+E143 -> 7,895,157.59 | D143: 3,266,338.00 | E143: 4,628,819.59 | F143: кв. м | H143: 1,223.00
F144: руб. | H144: 7,681,663.00 | Q144: 49,107.00 | R144: 164,387.59
A145: 71 | B145: г. Тверь, пр-кт Победы, д. 42А | C145: =D145+E145 -> 6,945,106.99 | D145: 3,240,797.00 | E145: 3,704,309.99 | F145: кв. м | H145: 1,074.00
F146: руб. | H146: 6,745,794.00 | Q146: 54,953.00 | R146: 144,359.99
A147: 72 | B147: г. Тверь, ш. Петербургское, д. 43 | C147: =D147+E147 -> 2,368,102.73 | D147: 1,418,463.00 | E147: 949,639.73 | F147: кв. м | L147: 966.20 | N147: 966.20
F148: руб. | L148: 1,546,886.20 | N148: 674,407.60 | Q148: 99,273.24 | R148: 47,535.69
A149: 73 | B149: Лихославльский муниципальный округ, г. Лихославль, ул. Бежецкая, д. 25 | C149: =D149+E149 -> 697,863.44 | D149: 499,552.30 | E149: 198,311.14 | F149: кв. м | L149: 286.00 | N149: 286.00
F150: руб. | L150: 457,886.00 | N150: 199,628.00 | Q150: 26,278.64 | R150: 14,070.80
A151: 74 | B151: Лихославльский муниципальный округ, пос. Калашниково, ул. Горького, д. 3 | C151: =D151+E151 -> 2,029,840.80 | D151: 1,834,915.90 | E151: 194,924.90 | F151: кв. м | N151: 2,687.90
F152: руб. | N152: 1,876,154.20 | Q152: 113,536.90 | R152: 40,149.70
A153: 75 | B153: Лихославльский муниципальный округ, г. Лихославль, п. Льнозавода, д. 26 | C153: =D153+E153 -> 3,365,529.25 | D153: 2,097,206.82 | E153: 1,268,322.43 | F153: кв. м | H153: 628.00
F154: руб. | H154: 3,180,820.00 | Q154: 116,639.70 | R154: 68,069.55
